bitfinex/quotes_SOLUSD_20260105
["timestamp","ask_amount","ask_price","bid_price","bid_amount"]
[1767606517672,0.099,135.48,135.44,0.65953343]
[1767606517874,3.32673248,135.47,135.44,0.65953343]
[1767606520277,0.099,135.48,135.44,0.65953343]
[1767606520574,3.32673248,135.47,135.44,0.65953343]
[1767606520972,3.42573248,135.48,135.44,0.65953343]
[1767606521174,3.42573248,135.48,135.45,0.65953343]
[1767606521571,3.32673248,135.47,135.45,0.65953343]
[1767606521878,3.50737474,135.47,135.43,0.65953343]
[1767606522572,0.18146693,135.48,135.43,0.65953343]
[1767606522780,3.50819941,135.48,135.43,0.65953343]
[1767606523277,3.50819941,135.48,135.44,0.65953343]
[1767606523857,0.18146693,135.48,135.44,0.65953343]
[1767606525569,3.50819941,135.48,135.44,0.65953343]
[1767606525877,3.42573248,135.47,135.44,0.65953343]
[1767606526058,0.099,135.47,135.44,0.65953343]
[1767606526379,10.80689805,135.48,135.44,0.65953343]
[1767606526580,0.18064226,135.47,135.44,0.65953343]
[1767606527285,10.88936498,135.48,135.44,0.65953343]
[1767606527881,3.42573248,135.47,135.44,0.65953343]
[1767606529564,3.50737474,135.46,135.42,0.65953343]
[1767606529768,3.4265489,135.45,135.42,0.65953343]
[1767606530182,0.09981642,135.45,135.42,0.65953343]
[1767606533800,3.50819941,135.46,135.41,0.65953343]
[1767606534289,3.42573248,135.45,135.41,0.65953343]
[1767606534487,0.099,135.45,135.41,0.65953343]
[1767606534869,3.42573248,135.45,135.41,0.65953343]
[1767606536687,0.18146693,135.46,135.42,0.65953343]
[1767606536893,3.50819941,135.46,135.42,0.65953343]
[1767606539189,3.42573248,135.45,135.42,0.65953343]
[1767606540732,0.18146693,135.46,135.42,0.65953343]
[1767606541011,3.50819941,135.46,135.43,0.66871512]
[1767606541691,3.50819941,135.46,135.42,0.66871512]
[1767606541982,0.18064226,135.44,135.4,0.66871512]
[1767606542189,3.50737474,135.44,135.4,0.66871512]
[1767606542575,3.32673248,135.44,135.4,0.66871512]
[1767606543082,3.42573248,135.44,135.4,0.66871512]
[1767606543282,0.18064226,135.43,135.39,32.92604152]
[1767606543503,0.06981642,135.42,135.39,20.82604152]
[1767606543802,3.32673248,135.43,135.4,0.69134868]
[1767606544304,3.29673245,135.43,135.4,0.69134868]
[1767606545095,3.32673248,135.41,135.38,0.69134868]
[1767606545303,3.32673248,135.4,135.36,0.69134868]
[1767606545601,3.32673248,135.37,135.33,0.69134868]
[1767606546284,3.42573248,135.37,135.33,0.69134868]
[1767606546599,2.23253196,135.37,135.33,0.69134868]
[1767606546810,0.12124226,135.36,135.32,7.38948761]
[1767606547108,2.13353196,135.37,135.33,0.69134868]
[1767606547481,2.23253196,135.37,135.33,0.69134868]
[1767606547994,0.12124226,135.36,135.31,8.28161452]
[1767606548202,2.25499889,135.37,135.32,0.69134868]
[1767606549303,2.13353196,135.37,135.33,0.69134868]
[1767606549612,2.23253196,135.37,135.33,0.69134868]
[1767606550092,2.13353196,135.37,135.33,0.69134868]
[1767606551092,2.23253196,135.37,135.33,0.69134868]
[1767606551293,0.099,135.38,135.33,0.69134868]
[1767606551491,2.13353196,135.37,135.33,0.69134868]
[1767606552809,2.23253196,135.38,135.34,0.69134868]
[1767606553199,0.09922242,135.36,135.33,0.69134868]
[1767606553404,2.23275438,135.36,135.32,0.69134868]
[1767606553602,0.12102206,135.35,135.32,0.69134868]
[1767606553913,2.13353196,135.35,135.32,0.69134868]
[1767606554285,2.13353196,135.36,135.32,0.69134868]
[1767606554704,2.23253196,135.36,135.32,0.69134868]
[1767606554901,0.099,135.36,135.32,0.69134868]
[1767606555099,0.12146693,135.37,135.32,0.69134868]
[1767606555413,2.23253196,135.36,135.32,0.69134868]
[1767606557411,2.20253196,135.36,135.32,0.69134868]
[1767606559312,2.17253196,135.36,135.32,0.69134868]
[1767606560213,2.13353196,135.35,135.32,0.69134868]
[1767606562803,2.13353196,135.34,135.31,0.89134868]
[1767606562989,0.12124226,135.35,135.31,0.89134868]
[1767606563194,2.13353196,135.34,135.32,0.69134868]
[1767606563401,2.25477422,135.35,135.32,0.69134868]
[1767606563794,2.25499889,135.35,135.32,0.69134868]
[1767606564004,2.13353196,135.35,135.32,0.69134868]
[1767606565516,2.23253196,135.35,135.32,0.69134868]
[1767606565910,2.25477422,135.34,135.31,0.89134868]
[1767606566114,2.25477422,135.34,135.31,0.2]
[1767606566115,2.13353196,135.33,135.31,0.2]
[1767606566516,2.25477422,135.34,135.31,0.89134868]
[1767606566823,2.25499889,135.35,135.32,0.69134868]
[1767606568400,2.13353196,135.34,135.31,0.89134868]
[1767606569123,7.50976733,135.35,135.31,0.89134868]
[1767606569313,2.13353196,135.34,135.31,0.89134868]
[1767606569925,2.13353196,135.35,135.32,0.69134868]
[1767606570110,2.23253196,135.35,135.32,0.69134868]
[1767606571015,2.13353196,135.35,135.32,0.69134868]
[1767606578416,2.25477422,135.35,135.32,0.69134868]
[1767606579234,2.25477422,135.35,135.31,0.90274774]
[1767606579423,2.13353196,135.34,135.31,0.90274774]
[1767606580627,7.50964938,135.35,135.31,0.90274774]
[1767606580830,2.13353196,135.34,135.31,0.90274774]
[1767606581521,2.17275438,135.34,135.31,0.90274774]
[1767606581730,0.09922242,135.34,135.31,0.90274774]
[1767606581921,2.23275438,135.34,135.31,0.90274774]
[1767606582742,2.13353196,135.34,135.32,0.70274774]
[1767606583232,2.13353196,135.35,135.32,0.70274774]
[1767606583436,2.13353196,135.35,135.31,0.2]
[1767606583437,9.62224598,135.33,135.31,0.2]
[1767606583623,2.13353196,135.32,135.3,0.07853308]
[1767606583823,20.8494916,135.33,135.27,0.70274774]
[1767606584039,2.13353196,135.29,135.27,0.70274774]
[1767606584243,2.13353196,135.28,135.27,0.70274774]
[1767606584436,2.13353196,135.28,135.26,0.70274774]
[1767606584637,0.71184079,135.32,135.25,7.5936911]
[1767606584828,2.13353196,135.29,135.25,7.5936911]
[1767606585148,0.11202761,135.31,135.27,0.70274774]
[1767606585338,2.13353196,135.3,135.27,0.70274774]
[1767606586038,0.11202761,135.31,135.27,0.70274774]
[1767606586241,7.39035407,135.32,135.27,0.70274774]
[1767606586435,2.13353196,135.31,135.27,0.70274774]
[1767606587143,0.11202761,135.32,135.27,0.70274774]
[1767606587326,2.13353196,135.31,135.27,0.70274774]
[1767606588522,7.50201486,135.32,135.28,0.70274774]
[1767606588725,2.13353196,135.31,135.28,0.70274774]
[1767606589348,0.11202761,135.32,135.28,0.70274774]
[1767606589551,2.24555957,135.32,135.28,0.70274774]
[1767606589751,16.30537275,135.33,135.28,0.70274774]
[1767606589950,14.17184079,135.33,135.28,2.8362797]
[1767606590245,2.84537275,135.35,135.31,0.70274774]
[1767606590446,0.71184079,135.35,135.31,2.8362797]
[1767606592533,2.84537275,135.35,135.31,0.70274774]
[1767606592732,2.13353196,135.34,135.31,0.70274774]
[1767606593151,2.13353196,135.34,135.29,9.52505227]
[1767606593152,0.69966085,135.33,135.3,0.70268605]
[1767606594226,2.13353196,135.34,135.3,0.70268605]
[1767606595131,2.07353197,135.34,135.3,0.70268605]
[1767606595940,2.19761772,135.34,135.3,0.70268605]
[1767606596143,2.13353196,135.33,135.3,0.70268605]
[1767606599656,0.6939051,135.33,135.3,0.70268605]
[1767606599961,2.13353196,135.33,135.3,0.70268605]
[1767606600933,2.83319281,135.34,135.3,0.70268605]
[1767606601256,2.26331591,135.31,135.27,0.72266169]
[1767606601465,2.13353196,135.3,135.27,0.72266169]
[1767606602361,2.26890071,135.29,135.26,0.72266169]
[1767606602548,2.27437437,135.27,135.25,0.2]
[1767606602739,13.46,135.3,135.23,0.92266169]
[1767606602740,2.13353196,135.26,135.23,0.92266169]
[1767606602935,2.13353196,135.25,135.23,0.92266169]
[1767606603158,2.13353196,135.26,135.23,0.92266169]
[1767606603362,13.46,135.3,135.23,0.92266169]
[1767606603540,2.13353196,135.25,135.23,0.92266169]
[1767606603741,2.07353197,135.25,135.23,0.2]
[1767606605057,7.97582189,135.29,135.24,0.72266169]
[1767606605262,2.23253196,135.28,135.24,0.72266169]
[1767606605858,14.04415759,135.3,135.25,0.72266169]
[1767606606040,16.17768955,135.3,135.25,0.72266169]
[1767606606379,2.13353196,135.3,135.26,0.72266169]
[1767606607564,7.97494147,135.31,135.26,0.72266169]
[1767606607863,2.13353196,135.3,135.26,0.72266169]
[1767606608561,3.33710575,135.3,135.26,0.72266169]
[1767606610462,3.33710575,135.3,135.27,0.72266169]
[1767606612068,0.57930601,135.3,135.26,0.72266169]
[1767606612270,3.33710575,135.29,135.26,0.72266169]
[1767606612464,3.33710575,135.3,135.26,0.72266169]
[1767606613050,3.33710575,135.28,135.24,8.11678271]
[1767606613447,3.33710575,135.26,135.23,0.2]
[1767606613753,3.33710575,135.24,135.23,0.2]
[1767606615568,3.33710575,135.24,135.2,0.2]
[1767606615757,3.33710575,135.23,135.2,0.92266169]
[1767606616348,18.48224505,135.27,135.21,0.72266169]
[1767606616349,7.39328785,135.26,135.21,0.72266169]
[1767606616549,3.33710575,135.24,135.21,0.72266169]
[1767606617165,3.33710575,135.25,135.21,0.72266169]
[1767606619277,3.33710575,135.24,135.21,0.72266169]
[1767606619454,3.33710575,135.23,135.2,0.92266169]
[1767606619776,0.37851118,135.22,135.2,0.2]
[1767606620155,3.33710575,135.23,135.2,0.2]
[1767606620364,3.33710575,135.23,135.2,0.92266169]
[1767606621860,0.38415759,135.26,135.21,0.72266169]
[1767606622048,3.33710575,135.24,135.21,0.72266169]
[1767606623464,3.33710575,135.22,135.2,0.92266169]
[1767606625378,3.33710575,135.22,135.2,0.2]
[1767606625780,0.10182306,135.23,135.2,0.92266169]
[1767606626079,3.33710575,135.23,135.2,8.31902223]
[1767606626262,3.33710575,135.23,135.2,0.92266169]
[1767606626659,3.33710575,135.22,135.2,0.92266169]
[1767606626860,0.099,135.24,135.18,0.92266169]
[1767606626861,3.33710575,135.21,135.18,0.92266169]
[1767606627084,3.33710575,135.2,135.18,0.92266169]
[1767606627383,3.33710575,135.24,135.17,0.92266169]
[1767606627384,3.33710575,135.19,135.17,0.92266169]
[1767606627878,3.33710575,135.18,135.16,0.92266169]
[1767606628080,3.33710575,135.17,135.15,0.92266169]
[1767606628266,13.48,135.22,135.15,0.2]
[1767606628267,3.33710575,135.16,135.15,0.2]
[1767606628458,0.172456,135.15,135.13,0.2]
[1767606628662,3.33710575,135.14,135.13,0.2]
[1767606628984,10.91989065,135.17,135.13,0.2]
[1767606629186,3.33710575,135.14,135.12,0.92266169]
[1767606629481,3.33710575,135.13,135.12,0.92266169]
[1767606629661,3.33710575,135.14,135.12,0.92266169]
[1767606629865,3.33710575,135.15,135.12,0.92266169]
[1767606630063,3.33710575,135.17,135.14,0.72266169]
[1767606630664,13.48,135.18,135.14,0.72266169]
[1767606630871,3.33710575,135.17,135.14,0.72266169]
[1767606631363,0.18330601,135.18,135.14,0.72266169]
[1767606631585,3.33710575,135.17,135.14,0.72266169]
[1767606632088,20.87700748,135.19,135.15,0.69266777]
[1767606632089,13.48,135.19,135.15,0.69266777]
[1767606632293,3.33710575,135.18,135.15,0.69266777]
[1767606632591,13.48,135.19,135.15,0.69266777]
[1767606632592,3.33710575,135.17,135.15,0.69266777]
[1767606632788,3.33710575,135.18,135.15,0.69266777]
[1767606633978,3.43694881,135.17,135.13,8.09294898]
[1767606634181,3.33710575,135.17,135.13,8.09294898]
[1767606634496,3.33710575,135.17,135.14,0.69266777]
[1767606634993,13.579,135.2,135.14,0.69266777]
[1767606635190,3.33710575,135.18,135.14,0.69266777]
[1767606635493,3.52041176,135.19,135.14,0.69266777]
[1767606636789,3.33710575,135.17,135.14,0.69266777]
[1767606638681,3.33710575,135.17,135.14,8.09228647]
[1767606638870,3.33710575,135.16,135.12,12.99266777]
[1767606639267,3.33710575,135.16,135.13,0.69266777]
[1767606639694,3.33710575,135.15,135.13,0.69266777]
[1767606640483,3.33710575,135.16,135.13,0.69266777]
[1767606640997,3.33710575,135.17,135.14,0.69266777]
[1767606641216,7.58094271,135.2,135.14,0.69266777]
[1767606641377,3.52041176,135.19,135.15,0.69266777]
[1767606641701,3.33710575,135.18,135.15,0.69266777]
[1767606642396,3.52041176,135.19,135.15,0.69266777]
[1767606642601,3.33710575,135.19,135.16,0.69266777]
[1767606643397,13.579,135.2,135.16,0.69266777]
[1767606643600,3.33710575,135.18,135.16,0.69266777]
[1767606644986,3.33710575,135.19,135.16,0.69266777]
[1767606645387,0.18330601,135.19,135.15,0.69266777]
[1767606645585,3.33710575,135.18,135.15,0.69266777]
[1767606646900,3.52041176,135.19,135.15,0.69266777]
[1767606647201,3.52041176,135.19,135.15,8.09181292]
[1767606647402,3.33710575,135.19,135.16,0.69266777]
[1767606647605,3.33710575,135.21,135.16,0.69266777]
[1767606647901,13.66415759,135.22,135.17,0.69266777]
[1767606648103,3.33710575,135.21,135.17,0.69266777]
[1767606650299,17.00126334,135.22,135.17,8.09050967]
[1767606650781,17.00126334,135.22,135.18,0.69266777]
[1767606651183,3.33710575,135.23,135.18,0.69266777]
[1767606651385,10.83096623,135.23,135.19,0.69266777]
[1767606651605,3.43610575,135.23,135.19,0.69266777]
[1767606652295,3.52041176,135.22,135.17,8.0957963]
[1767606652478,3.52041176,135.22,135.18,0.6979544]
[1767606653982,3.33710575,135.21,135.18,0.6979544]
[1767606654585,3.33710575,135.21,135.18,8.09548139]
[1767606654892,3.52041176,135.22,135.18,8.09548139]
[1767606655091,3.52041176,135.22,135.18,0.6979544]
[1767606656899,3.33710575,135.21,135.18,0.6979544]
[1767606658602,3.52041176,135.22,135.18,0.6979544]
[1767606660317,3.52041176,135.22,135.18,8.09546397]
[1767606661007,0.18330601,135.22,135.18,8.09546397]
[1767606661187,0.18330601,135.22,135.18,8.09167456]
[1767606661806,3.52126334,135.23,135.19,0.69416499]
[1767606662492,0.18415759,135.23,135.19,0.69416499]
[1767606662699,3.52126334,135.23,135.19,0.69416499]
[1767606663208,3.33710575,135.22,135.19,0.69416499]
[1767606666309,0.18415759,135.23,135.19,0.69416499]
[1767606666491,3.33710575,135.22,135.19,0.69416499]
[1767606667287,3.52126334,135.23,135.19,0.69416499]
[1767606667708,13.66415759,135.24,135.2,0.69416499]
[1767606667913,3.33710575,135.26,135.21,0.69416499]
[1767606668412,3.33710575,135.26,135.22,0.69416499]
[1767606669413,3.33710575,135.25,135.22,0.69416499]
[1767606670714,2.13742625,135.25,135.22,0.69416499]
[1767606671794,7.39284923,135.27,135.22,0.69416499]
[1767606672001,2.13742625,135.26,135.23,0.69416499]
[1767606673954,9.62927548,135.27,135.23,0.66416502]
[1767606674614,0.21415756,135.29,135.23,9.53218457]
[1767606674993,2.35158381,135.29,135.23,9.53218457]
[1767606675701,2.35158381,135.29,135.24,0.69416499]
[1767606675914,2.13742625,135.29,135.25,0.69416499]
[1767606676816,18.12665602,135.3,135.26,0.69416499]
[1767606677018,18.12665602,135.3,135.26,2.13742625]
[1767606677202,4.64665602,135.3,135.26,2.13742625]
[1767606677715,4.64665602,135.3,135.27,2.13742625]
[1767606677918,4.64665602,135.3,135.27,9.52986505]
[1767606679121,4.64665602,135.3,135.28,0.69416499]
[1767606680316,4.64665602,135.3,135.29,0.69416499]
[1767606680519,2.47165602,135.3,135.29,2.13742625]
[1767606680817,1.99081357,135.3,135.29,2.13742625]
[1767606681120,0.24415755,135.33,135.29,2.13742625]
[1767606681444,0.6863733,135.34,135.3,2.13742625]
[1767606681723,0.6863733,135.34,135.31,2.13742625]
[1767606682302,0.6863733,135.34,135.3,7.39057813]
[1767606682502,0.6863733,135.34,135.31,2.13742625]
[1767606683725,0.6863733,135.34,135.3,7.39057813]
[1767606683905,0.6863733,135.34,135.3,9.52800438]
[1767606684226,0.6863733,135.34,135.29,7.3915293]
[1767606684403,0.6863733,135.33,135.29,9.52895555]
[1767606684914,0.6863733,135.34,135.3,2.13742625]
[1767606685814,0.6863733,135.34,135.29,7.3915293]
[1767606686018,0.6863733,135.34,135.3,2.13742625]
[1767606687115,0.6863733,135.35,135.3,9.52825366]
[1767606688958,0.6863733,135.35,135.3,7.39082741]
[1767606689112,0.6863733,135.34,135.3,2.13742625]
[1767606689309,0.6863733,135.33,135.28,19.49199919]
[1767606689618,0.6863733,135.33,135.29,2.13742625]
[1767606690831,0.6863733,135.33,135.28,9.52942544]
[1767606691013,0.6863733,135.33,135.28,7.39199919]
[1767606691221,0.72006124,135.32,135.28,9.52942544]
[1767606691833,7.38886672,135.34,135.29,0.68692253]
[1767606692010,2.13742625,135.33,135.29,8.07843182]
[1767606692416,9.52629297,135.34,135.29,8.07843182]
[1767606693214,9.52629297,135.34,135.29,0.68692253]
[1767606693912,0.72006124,135.32,135.28,2.13742625]
[1767606694118,2.85748749,135.31,135.27,12.78692253]
[1767606695122,0.72006124,135.3,135.27,12.78692253]
[1767606695322,0.72006124,135.3,135.27,8.07949176]
[1767606696616,0.72006124,135.3,135.26,8.07994622]
[1767606697142,2.85748749,135.3,135.26,8.07994622]
[1767606697439,0.72006124,135.3,135.26,8.07994622]
[1767606697621,0.72006124,135.3,135.26,0.68692253]
[1767606697822,0.72006124,135.29,135.26,0.68692253]
[1767606698734,0.72006124,135.29,135.26,8.0800304]
[1767606700340,0.72006124,135.29,135.26,0.68692253]
[1767606705153,2.85748749,135.29,135.25,8.0804344]
[1767606706747,0.72006124,135.29,135.25,8.0804344]
[1767606706938,0.72006124,135.29,135.26,8.08005806]
[1767606708451,0.72006124,135.29,135.26,0.68692253]
[1767606708838,0.72006124,135.29,135.26,8.08004777]
[1767606710241,0.72006124,135.29,135.26,0.68692253]
[1767606712255,2.13742625,135.28,135.26,0.68692253]
[1767606712451,2.85748749,135.29,135.26,0.68692253]
[1767606713054,0.72006124,135.29,135.26,0.68692253]
[1767606713259,0.72006124,135.29,135.26,8.0800446]
[1767606713454,2.13742625,135.28,135.25,0.66230578]
[1767606713750,2.85748749,135.29,135.25,0.66230578]
[1767606714444,0.72006124,135.29,135.25,0.66230578]
[1767606714755,2.85748749,135.29,135.25,0.66230578]
[1767606715259,0.66294379,135.28,135.25,0.66230578]
[1767606715553,0.66294379,135.27,135.24,7.39392718]
[1767606716659,2.80037004,135.28,135.25,0.66230578]
[1767606721562,0.71870102,135.27,135.24,0.66008844]
[1767606721752,2.85612727,135.27,135.24,0.66008844]
[1767606722654,0.71870102,135.27,135.24,0.66008844]
[1767606722850,2.85612727,135.28,135.24,8.05434377]
[1767606723053,0.71870102,135.28,135.25,8.05370616]
[1767606723256,2.85612727,135.29,135.25,8.05370616]
[1767606723457,0.71870102,135.28,135.25,8.05370616]
[1767606723757,0.71870102,135.28,135.25,0.66008844]
[1767606724862,0.71870102,135.26,135.22,38.64263709]
[1767606725062,0.71870102,135.26,135.22,31.24776897]
[1767606725257,0.71870102,135.26,135.23,0.66008844]
[1767606725966,0.71870102,135.26,135.23,8.05476847]
[1767606728065,2.13742625,135.27,135.25,0.66008844]
[1767606728263,2.85612727,135.29,135.25,0.66008844]
[1767606728670,0.71870102,135.29,135.25,0.66008844]
[1767606728967,2.85612727,135.29,135.25,0.66008844]
[1767606729161,0.71870102,135.28,135.25,0.66008844]
[1767606729368,2.13742625,135.29,135.25,0.66008844]
[1767606729565,2.85612727,135.29,135.25,0.66008844]
[1767606730180,2.85612727,135.29,135.26,0.66008844]
[1767606730555,4.05604372,135.29,135.26,0.66008844]
[1767606731269,4.05604372,135.29,135.25,0.66008844]
[1767606731474,0.71870102,135.29,135.25,0.66008844]
[1767606731673,4.05604372,135.29,135.25,0.66008844]
[1767606732673,0.71870102,135.28,135.25,0.66008844]
[1767606733676,0.71870102,135.29,135.26,0.66008844]
[1767606734005,3.3373427,135.3,135.26,0.66008844]
[1767606734006,4.05604372,135.3,135.26,0.66008844]
[1767606735152,0.71870102,135.33,135.3,0.66008844]
[1767606735480,0.71870102,135.34,135.3,0.63008846]
[1767606736271,0.71870102,135.34,135.3,11.35792685]
[1767606737069,3.3373427,135.32,135.26,35.2795859]
[1767606737289,0.71870102,135.31,135.28,8.05179132]
[1767606737584,0.71870102,135.32,135.28,8.05179132]
[1767606741967,0.71870102,135.31,135.28,0.66008844]
[1767606743068,0.71870102,135.32,135.28,8.0521171]
[1767606743275,4.05604372,135.32,135.28,8.0521171]
[1767606744683,4.05604372,135.32,135.28,0.66008844]
[1767606747161,0.71870102,135.3,135.27,0.66008844]
[1767606747478,0.71870102,135.29,135.25,8.05358147]
[1767606753586,0.6801353,135.3,135.26,0.65890746]
[1767606753884,4.017478,135.31,135.26,0.65890746]
[1767606754983,0.6801353,135.3,135.26,8.05167716]
[1767606757770,0.6801353,135.3,135.27,8.05130169]
[1767606757970,0.6801353,135.3,135.27,7.39239423]
[1767606759274,4.017478,135.3,135.27,7.39239423]
[1767606760084,4.017478,135.3,135.26,8.0518437]
[1767606760271,0.6801353,135.29,135.25,20.15240782]
[1767606760468,0.6801353,135.28,135.25,12.1]
[1767606762586,0.6801353,135.28,135.25,19.4934728]
[1767606763775,0.6801353,135.28,135.25,7.3934728]
[1767606765197,0.6801353,135.28,135.25,8.05238026]
[1767606765374,0.6801353,135.33,135.26,3.99625016]
[1767606765574,0.6801353,135.3,135.26,3.99625016]
[1767606765897,0.6801353,135.3,135.26,11.38923772]
[1767606766122,3.3373427,135.32,135.27,3.99625016]
[1767606766271,0.6801353,135.31,135.27,3.99625016]
[1767606768087,0.6801353,135.31,135.27,8.05101584]
[1767606768396,0.6801353,135.31,135.27,11.38835854]
[1767606770480,0.6801353,135.31,135.27,8.05101584]
[1767606770795,0.6801353,135.3,135.25,26.21890746]
[1767606770973,0.6801353,135.29,135.25,33.61228766]
[1767606771302,0.6801353,135.29,135.26,0.65890746]
[1767606771682,0.70243899,135.28,135.25,12.1]
[1767606774804,0.70243899,135.28,135.25,19.49359614]
[1767606774988,0.70243899,135.3,135.27,0.67803254]
[1767606775704,0.70243899,135.3,135.27,8.07048641]
[1767606776777,0.70243899,135.3,135.27,0.67803254]
[1767606780888,0.70243899,135.3,135.27,8.07055683]
[1767606784618,0.70243899,135.3,135.27,11.40789953]
[1767606784992,0.70243899,135.3,135.27,8.07055683]
[1767606789320,0.64243899,135.3,135.27,8.07055683]
[1767606798224,0.70353403,135.32,135.28,0.65935939]
[1767606799123,0.70353403,135.32,135.28,8.05112269]
[1767606799327,0.70353403,135.31,135.28,7.3917633]
[1767606803937,0.70353403,135.33,135.3,0.65935939]
[1767606804227,0.1,135.37,135.28,12.1]
[1767606804228,0.70353403,135.35,135.31,2.79448457]
[1767606804443,0.70353403,135.35,135.32,0.65935939]
[1767606804630,0.70353403,135.35,135.33,2.13512518]
[1767606805203,0.70353403,135.35,135.32,2.79448457]
[1767606805818,0.70353403,135.35,135.32,10.18383373]
[1767606807627,0.80353403,135.37,135.33,2.79448457]
[1767606808330,0.80353403,135.37,135.33,0.65935939]
[1767606808645,0.80353403,135.37,135.33,2.79448457]
[1767606809531,0.80353403,135.37,135.33,10.18329943]
[1767606809732,0.80353403,135.37,135.33,8.04817425]
[1767606810437,0.80353403,135.37,135.34,0.65935939]
[1767606810663,0.80353403,135.37,135.34,2.79448457]
[1767606811532,0.80353403,135.37,135.34,8.04811871]
[1767606811932,0.80353403,135.37,135.33,8.08032186]
[1767606813957,0.80353403,135.37,135.33,10.21544704]
[1767606817664,0.80353403,135.37,135.33,8.08032186]
[1767606817963,0.80353403,135.37,135.33,0.69112326]
[1767606818444,0.80353403,135.37,135.33,8.08042438]
[1767606818644,0.80353403,135.37,135.33,10.21554956]
[1767606820548,0.80353403,135.37,135.33,8.08042438]
[1767606821463,0.80353403,135.37,135.32,7.38989062]
[1767606821464,0.69689136,135.36,135.32,7.38989062]
[1767606821669,0.69689136,135.35,135.32,7.38989062]
[1767606823372,0.69689136,135.35,135.32,8.08101388]
[1767606823963,0.79689136,135.37,135.33,0.69112326]
[1767606825347,0.79689136,135.37,135.33,2.82624844]
[1767606825885,0.1,135.37,135.34,0.69112326]
[1767606826171,0.1,135.37,135.35,7.38825267]
[1767606826546,0.79689136,135.37,135.35,7.38825267]
[1767606826751,0.69689136,135.4,135.36,2.82624844]
[1767606827058,0.69689136,135.4,135.36,0.69112326]
[1767606827059,0.69689136,135.39,135.36,0.69112326]
[1767606827863,0.69689136,135.39,135.36,8.07860038]
[1767606828262,0.69689136,135.39,135.35,7.38789424]
[1767606828465,0.69689136,135.38,135.35,7.38789424]
[1767606828963,0.69689136,135.38,135.35,8.0790175]
[1767606832560,0.69689136,135.38,135.35,7.38789424]
[1767606833070,0.69689136,135.38,135.34,7.38873906]
[1767606833656,0.69689136,135.38,135.34,8.10427547]
[1767606834173,0.69689136,135.38,135.34,7.38873906]
[1767606834365,0.69689136,135.38,135.34,8.10427547]
[1767606835478,0.69689136,135.38,135.35,0.71553641]
[1767606839974,0.69689136,135.38,135.35,8.10352901]
[1767606841069,2.83201654,135.38,135.34,7.38840104]
[1767606841374,0.68268783,135.37,135.34,8.05189283]
[1767606845467,0.68268783,135.38,135.34,8.05189283]
[1767606847678,0.68268783,135.38,135.34,26.52388928]
[1767606847992,0.68268783,135.38,135.35,0.66349179]
[1767606850376,0.68268783,135.38,135.35,8.05152947]
[1767606852784,0.68268783,135.38,135.34,18.47199645]
[1767606852785,0.68268783,135.38,135.34,25.86079503]
[1767606853085,0.68268783,135.38,135.34,26.52428682]
[1767606855000,0.68268783,135.38,135.35,8.05161093]
[1767606856991,4.01539414,135.38,135.35,8.05161093]
[1767606858501,0.68268783,135.38,135.35,8.05161093]
[1767606862606,0.68268783,135.38,135.33,15.43270631]
[1767606862607,0.68268783,135.37,135.33,12.76349179]
[1767606862908,0.68268783,135.35,135.33,12.1]
[1767606863500,0.68268783,135.35,135.32,8.05305948]
[1767606864481,0.68268783,135.33,135.29,0.66349179]
[1767606864798,0.68268783,135.33,135.3,8.05423844]
[1767606866996,4.01539414,135.33,135.3,8.05423844]
[1767606870687,0.6541123,135.31,135.28,21.5115475]
[1767606870892,0.6541123,135.31,135.28,7.39186081]
[1767606871091,0.6541123,135.31,135.28,19.49186081]
[1767606873999,0.6541123,135.31,135.28,20.1515475]
[1767606874782,3.33270631,135.35,135.3,0.65968669]
[1767606875294,7.38657305,135.39,135.33,3.992393]
[1767606875503,0.6541123,135.37,135.33,3.96239301]
[1767606875803,0.6541123,135.37,135.34,7.38879858]
[1767606878300,0.6541123,135.37,135.34,11.38119158]
[1767606880606,0.6541123,135.37,135.35,10.72083441]
[1767606882313,0.6541123,135.37,135.35,7.3881281]
[1767606886322,0.6541123,135.37,135.35,7.35812811]
[1767606886825,0.6541123,135.38,135.35,8.0178148]
[1767606887734,0.6541123,135.38,135.34,3.992393]
[1767606888208,0.6541123,135.38,135.34,11.38115837]
[1767606889024,0.6541123,135.38,135.35,0.65968669]
[1767606890331,0.6541123,135.38,135.35,8.04787539]
[1767606890824,0.6541123,135.38,135.35,11.3805817]
[1767606892911,0.6541123,135.38,135.35,11.35058171]
[1767606896940,0.6541123,135.38,135.35,8.0178754]
[1767606897127,0.6541123,135.38,135.35,11.35058171]
[1767606899143,0.6541123,135.38,135.35,8.0178754]
[1767606899930,0.6541123,135.38,135.34,0.72416235]
[1767606900132,0.71712362,135.37,135.33,20.21313327]
[1767606900340,0.71712362,135.37,135.34,7.38871014]
[1767606900541,0.71712362,135.37,135.34,11.4455788]
[1767606900931,0.71712362,135.37,135.34,8.11287249]
[1767606901449,0.71712362,135.37,135.34,0.72416235]
[1767606901640,0.71712362,135.37,135.34,0.69416236]
[1767606901837,0.71712362,135.37,135.33,7.38912259]
[1767606902047,0.67180743,135.34,135.3,22.82348497]
[1767606902352,0.67180743,135.34,135.3,7.39077866]